bitfinex/quotes_ETHUSD_20241217
["timestamp","ask_amount","ask_price","bid_price","bid_amount"]
[1734412189909,9.30683687,4010.3,4008.6,1.10204979]
[1734412190057,9.30683687,4010.3,4009.5,0.03900744]
[1734412190262,2.1499573,4009.6,4008.4,0.12350199]
[1734412190581,1.07497865,4008.5,4007.9,0.7818]
[1734412190787,1.07497865,4008.0,4007.9,0.7818]
[1734412190985,1.07497865,4008.0,4007.7,0.32024979]
[1734412192084,1.07497865,4008.0,4007.9,0.12758405]
[1734412192284,1.07497865,4008.0,4007.9,0.58299026]
[1734412192524,0.73954201,4008.0,4007.9,0.58299026]
[1734412196536,1.07497865,4008.3,4007.9,0.58299026]
[1734412198997,1.07497865,4008.3,4008.0,0.04033466]
[1734412200503,1.07497865,4008.3,4008.2,3.0]
[1734412200824,1.07497865,4008.3,4008.2,3.04041735]
[1734412202321,1.07497865,4008.3,4008.2,0.04041735]
[1734412202526,1.07497865,4008.3,4007.9,0.12758405]
[1734412203057,1.07497865,4008.3,4008.0,0.04051392]
[1734412203364,1.07497865,4008.3,4008.2,3.0]
[1734412203646,1.07497865,4008.3,4008.1,0.04049804]
[1734412203805,1.07497865,4008.3,4008.2,0.04048215]
[1734412204020,1.07497865,4008.3,4007.9,0.12758405]
[1734412204253,1.07497865,4008.3,4008.2,3.04048215]
[1734412204764,1.07497865,4008.3,4008.2,0.04048215]
[1734412206117,1.07497865,4008.3,4007.9,0.12758405]
[1734412206665,1.07497865,4008.3,4008.0,0.04051392]
[1734412210882,0.21499573,4009.5,4008.1,0.7903]
[1734412211088,1.07497865,4008.8,4008.2,1.0466033]
[1734412211365,1.07497865,4008.9,4008.3,4.48822851]
[1734412211574,1.07497865,4008.9,4008.3,0.66810994]
[1734412211746,1.07497865,4008.9,4008.4,0.86048545]
[1734412211949,1.07497865,4008.9,4008.5,0.49391452]
[1734412212184,1.07497865,4009.2,4008.6,1.09778358]
[1734412212475,0.35683687,4010.3,4008.7,1.20548074]
[1734412212476,1.07497865,4009.3,4008.7,1.20548074]
[1734412212680,1.07497865,4009.3,4008.7,0.32024979]
[1734412212976,1.07497865,4009.3,4008.8,0.23309023]
[1734412214345,1.07497865,4009.3,4008.9,0.02494181]
[1734412214674,1.07497865,4009.3,4009.0,0.03992657]
[1734412215172,1.07497865,4009.3,4008.9,0.02494181]
[1734412215386,1.07497865,4009.3,4009.1,0.03991069]
[1734412215543,1.07497865,4009.3,4008.8,0.19273326]
[1734412215740,1.07497865,4009.3,4008.9,0.17380353]
[1734412215943,1.07497865,4010.4,4009.0,1.13424979]
[1734412215944,1.07497865,4009.5,4009.0,1.13424979]
[1734412216247,1.07497865,4009.5,4009.4,3.0]
[1734412216586,1.07497865,4009.5,4009.4,0.03986305]
[1734412217298,1.07497865,4009.5,4009.0,0.32024979]
[1734412217595,1.07497865,4010.4,4009.0,0.32024979]
[1734412217768,1.07497865,4009.1,4009.0,0.32024979]
[1734412218155,1.07497865,4009.1,4009.0,0.46442313]
[1734412220162,1.07497865,4009.4,4009.1,0.814]
[1734412225903,1.07497865,4009.4,4009.0,0.30748358]
[1734412226105,1.07497865,4009.1,4008.8,0.12605146]
[1734412227123,1.07497865,4009.1,4008.8,0.44630125]
[1734412227269,1.07497865,4009.1,4008.8,0.75378483]
[1734412228761,1.07497865,4009.1,4008.9,0.03922702]
[1734412232313,1.07497865,4009.1,4008.9,0.06486173]
[1734412234387,1.07497865,4009.1,4009.0,0.8117]
[1734412234697,1.07497865,4009.1,4009.0,1.19693107]
[1734412236484,1.07497865,4009.1,4009.0,1.65997768]
[1734412237001,1.07497865,4009.1,4009.0,1.19693107]
[1734412238486,1.07497865,4009.1,4009.0,0.38523107]
[1734412238786,1.07497865,4009.1,4009.0,0.06498128]
[1734412238986,1.07497865,4009.1,4008.9,0.30748358]
[1734412239293,1.07497865,4009.1,4009.0,0.06498128]
[1734412239618,1.07497865,4009.1,4008.9,0.30748358]
[1734412239933,1.07497865,4009.1,4009.0,0.06498128]
[1734412240685,1.07497865,4009.1,4008.7,0.8201]
[1734412241019,1.04054621,4010.0,4008.7,0.8201]
[1734412241020,1.07497865,4008.8,4008.7,0.8201]
[1734412241254,1.07497865,4008.8,4008.7,1.3701]
[1734412242598,1.07497865,4008.8,4008.7,4.3701]
[1734412242797,1.07497865,4008.8,4008.7,1.3701]
[1734412243687,1.07497865,4008.8,4008.7,4.3701]
[1734412243888,1.07497865,4008.8,4008.7,5.29550616]
[1734412244695,1.07497865,4008.8,4008.7,6.58925049]
[1734412245119,1.07497865,4008.8,4008.7,6.71430965]
[1734412245332,1.07497865,4008.8,4008.7,7.55296203]
[1734412246998,1.07497865,4008.8,4008.7,7.86044561]
[1734412247192,1.07497865,4008.8,4008.7,8.1806954]
[1734412248793,1.07497865,4008.8,4008.7,8.18151871]
[1734412253756,1.07497865,4008.8,4008.7,9.22599953]
[1734412255497,1.07497865,4008.8,4008.7,8.18151871]
[1734412256615,1.07497865,4008.8,4008.7,11.47688034]
[1734412257308,1.07497865,4008.8,4008.7,6.52276633]
[1734412257502,1.07497865,4008.8,4008.7,6.20251654]
[1734412259656,1.07497865,4008.8,4008.7,5.52745738]
[1734412262641,1.07497865,4009.1,4008.8,3.7959]
[1734412262969,1.07497865,4009.1,4009.0,3.0]
[1734412263158,1.07497865,4009.1,4009.0,5.16027403]
[1734412263452,1.07497865,4009.1,4009.0,5.22228454]
[1734412264663,1.07497865,4009.1,4009.0,2.22228454]
[1734412265223,1.07497865,4009.1,4009.0,0.06201051]
[1734412265402,1.394029,4009.1,4008.4,1.04503083]
[1734412265715,1.07497865,4008.6,4008.5,0.92629469]
[1734412266306,1.07497865,4008.6,4008.5,0.06206819]
[1734412266506,1.07497865,4008.6,4008.2,1.04503083]
[1734412266758,1.35959656,4009.1,4008.5,0.06017482]
[1734412266902,2.60947357,4009.0,4008.1,4.04503083]
[1734412267107,1.07497865,4008.4,4008.2,2.16039495]
[1734412267351,1.07497865,4008.3,4007.9,1.35251441]
[1734412267653,1.07497865,4008.0,4007.9,1.35251441]
[1734412267958,1.07497865,4008.0,4007.9,3.51243444]
[1734412268157,1.07497865,4008.0,4007.9,6.51247229]
[1734412268357,1.07497865,4008.0,4007.9,5.46744146]
[1734412269321,1.07497865,4008.2,4008.0,3.0]
[1734412269522,1.07497865,4008.2,4008.1,5.78769125]
[1734412269965,1.07497865,4008.2,4008.1,6.58359125]
[1734412272268,1.04054621,4009.3,4008.2,3.0]
[1734412272424,1.07497865,4008.5,4008.3,2.78769125]
[1734412272629,1.07497865,4008.5,4008.3,0.62773337]
[1734412272830,1.07497865,4008.5,4008.4,0.86328809]
[1734412273937,1.07497865,4008.5,4008.4,0.92357412]
[1734412274362,1.07497865,4008.5,4008.4,0.06028603]
[1734412274519,1.07497865,4008.5,4008.4,3.06028603]
[1734412274723,1.07497865,4008.5,4008.4,0.06028603]
[1734412293656,1.07497865,4008.5,4007.9,0.32024979]
[1734412293857,1.07497865,4008.1,4008.0,0.86342686]
[1734412295456,1.07497865,4008.1,4007.9,0.32024979]
[1734412295656,1.07497865,4008.1,4008.0,0.86341407]
[1734412295858,1.07497865,4008.1,4007.9,0.32024979]
[1734412296671,1.07497865,4008.1,4007.8,0.30748358]
[1734412296873,1.07497865,4008.1,4007.9,0.86340558]
[1734412297398,1.07497865,4008.1,4007.8,0.30748358]
[1734412297628,1.07497865,4008.1,4007.5,4.85576377]
[1734412297629,1.07497865,4008.0,4007.5,4.85576377]
[1734412297765,1.07497865,4008.1,4007.6,5.15853587]
[1734412297963,1.04054621,4008.7,4007.4,1.36431356]
[1734412298203,3.40033005,4008.7,4007.5,2.15861097]
[1734412298371,1.16788384,4008.6,4007.6,0.86344439]
[1734412298706,2.23244621,4008.7,4007.6,0.86344439]
[1734412298864,2.23244621,4008.7,4007.4,1.36431356]
[1734412298865,2.47867969,4008.6,4007.4,1.36431356]
[1734412299071,1.07497865,4008.0,4007.5,2.15838327]
[1734412299887,1.07497865,4007.6,4007.5,2.15838327]
[1734412300611,1.07497865,4007.6,4007.5,5.15838327]
[1734412301396,1.07497865,4007.6,4007.5,0.86335331]
[1734412301721,1.07497865,4007.6,4007.5,5.15819486]
[1734412302036,1.07497865,4007.6,4007.5,2.15807035]
[1734412302190,1.07497865,4007.6,4007.5,0.86322814]
[1734412302627,1.31109,4008.6,4007.5,5.78578771]
[1734412302628,1.07497865,4007.8,4007.5,5.78578771]
[1734412302928,1.07497865,4007.8,4007.6,5.78578771]
[1734412303128,1.07497865,4007.8,4007.6,0.62773337]
[1734412303532,1.07497865,4007.8,4007.7,0.86320909]
[1734412303727,1.07497865,4007.8,4007.7,1.23014295]
[1734412304232,9.99054621,4008.8,4007.7,1.23014295]
[1734412304233,9.99054621,4008.8,4007.7,2.0583293]
[1734412304530,8.95,4008.8,4008.0,1.85036377]
[1734412304833,1.07497865,4008.9,4008.3,4.04406377]
[1734412305042,1.07497865,4008.9,4008.5,3.0]
[1734412305196,1.07497865,4008.9,4008.6,0.86317994]
[1734412305396,1.07497865,4008.9,4008.6,0.92239085]
[1734412305635,1.07497865,4008.9,4008.6,0.05921091]
[1734412305992,1.07497865,4008.9,4008.7,0.86304925]
[1734412306199,1.07497865,4008.9,4008.8,0.86304925]
[1734412306450,1.07497865,4008.9,4008.8,3.8063]
[1734412306743,1.07497865,4008.9,4008.8,6.02255697]
[1734412306887,1.07497865,4008.9,4008.8,6.02240484]
[1734412308543,1.07497865,4008.9,4008.8,1.72801839]
[1734412309098,1.07497865,4008.9,4008.8,3.86509409]
[1734412309293,1.07497865,4008.9,4008.8,6.02228078]
[1734412309489,1.07497865,4008.9,4008.8,6.88562684]
[1734412309893,8.95,4010.0,4008.8,6.88562684]
[1734412310095,1.07497865,4009.0,4008.9,5.15718669]
[1734412310296,1.07497865,4009.0,4008.9,5.21597678]
[1734412311844,1.07497865,4009.0,4008.9,2.21551601]
[1734412312348,1.07497865,4009.0,4008.9,5.21551601]
[1734412312720,8.95,4010.1,4008.9,6.22210399]
[1734412312922,1.07497865,4009.2,4009.0,5.48894383]
[1734412313123,1.07497865,4009.2,4009.1,1.66899037]
[1734412313352,1.07497865,4009.2,4009.1,6.02068735]
[1734412313553,1.07497865,4009.2,4009.1,1.72713912]
[1734412313948,1.07497865,4009.2,4009.1,5.36703275]
[1734412314158,1.07497865,4009.2,4009.1,6.66056312]
[1734412314477,1.07497865,4009.2,4009.1,6.66028315]
[1734412315926,1.07497865,4009.2,4009.1,5.36703275]
[1734412318152,1.07497865,4009.2,4009.1,1.50434238]
[1734412320141,1.07497865,4009.2,4009.1,0.05814875]
[1734412320344,1.07497865,4009.2,4008.8,0.8162]
[1734412320668,1.07497865,4008.9,4008.8,0.8162]
[1734412320866,1.07497865,4008.9,4008.8,2.96981003]
[1734412321052,1.07497865,4008.9,4008.8,5.96981003]
[1734412321227,1.07497865,4008.9,4008.8,7.05933509]
[1734412322249,1.07497865,4008.9,4008.8,6.07465265]
[1734412322452,1.07497865,4008.9,4008.8,1.12368358]
[1734412323877,1.07497865,4008.9,4008.8,2.30519816]
[1734412324766,1.07497865,4008.9,4008.8,1.44393337]
[1734412326541,1.07497865,4008.9,4008.8,1.56890907]
[1734412333016,1.07497865,4008.9,4008.8,2.42993816]
[1734412333702,1.07497865,4008.9,4008.8,2.48789233]
[1734412333853,1.07497865,4008.9,4008.8,1.62686324]
[1734412334758,1.07497865,4008.9,4008.8,2.48783542]
[1734412335076,1.07497865,4008.9,4008.8,1.62686324]
[1734412335272,1.07497865,4008.9,4008.8,2.48776786]
[1734412335662,1.07497865,4009.5,4009.0,0.8162]
[1734412335890,1.07497865,4009.5,4009.2,0.8162]
[1734412336074,1.07497865,4009.5,4009.3,0.02493913]
[1734412336396,1.07497865,4009.5,4009.4,0.05772382]
[1734412336575,8.95,4010.6,4009.4,0.60772382]
[1734412336775,1.07497865,4009.7,4009.4,0.55]
[1734412337023,1.07497865,4009.7,4009.5,0.05771392]
[1734412337530,1.07497865,4009.7,4009.3,0.55]
[1734412337690,1.07497865,4009.7,4009.6,0.05762931]
[1734412337891,1.07497865,4009.7,4009.3,0.55]
[1734412338198,1.07497865,4009.4,4009.2,0.8162]
[1734412340161,1.07497865,4009.4,4009.2,1.12368358]
[1734412342449,1.07497865,4009.4,4008.9,0.7829]
[1734412342631,1.07497865,4009.0,4008.9,0.7829]
[1734412343213,1.07497865,4009.3,4008.9,6.56192525]
[1734412343443,1.07497865,4009.3,4009.0,4.20570954]
[1734412343647,1.07497865,4009.3,4009.1,0.94651326]
[1734412343828,1.07497865,4009.3,4009.2,0.32024979]
[1734412346515,1.07497865,4009.3,4008.8,0.1249757]
[1734412346723,10.02497865,4010.4,4008.9,0.86135639]
[1734412346963,1.07497865,4008.9,4008.8,0.1249757]
[1734412347265,1.07497865,4008.9,4008.8,2.27900363]
[1734412348919,1.07497865,4008.9,4008.8,2.33648042]
[1734412349167,1.07497865,4008.9,4008.8,5.33744651]
[1734412349334,1.07497865,4008.9,4008.8,6.38151028]
[1734412350253,1.07497865,4008.9,4008.8,5.33744651]
[1734412351452,1.07497865,4008.9,4008.8,8.63070461]
[1734412351777,1.07497865,4008.9,4008.8,5.33744651]
[1734412351984,1.07497865,4008.9,4008.8,8.63068637]
[1734412352120,1.07497865,4008.9,4008.8,8.63074621]
[1734412352565,1.07497865,4008.9,4008.8,5.34028172]
[1734412352730,1.07497865,4008.9,4008.8,8.63367976]
[1734412354023,1.07497865,4008.9,4008.8,8.63404905]
[1734412354479,1.07497865,4008.9,4008.8,8.50907335]
[1734412354680,1.07497865,4008.9,4008.8,5.21567531]
[1734412354919,1.07497865,4008.9,4008.8,2.21567531]
[1734412355126,1.28997438,4008.9,4008.8,0.9207562]
[1734412355505,1.28997438,4008.9,4008.8,0.05747679]
[1734412355812,1.28997438,4008.9,4008.3,1.0441541]
[1734412356114,0.21499573,4008.9,4008.4,2.15898972]
[1734412356332,0.21499573,4008.9,4008.5,2.15897818]
[1734412356465,0.21499573,4008.9,4008.5,0.05780033]
[1734412356662,0.21499573,4008.9,4008.3,1.0441541]
[1734412356920,1.07497865,4008.4,4008.3,1.0441541]
[1734412357119,1.07497865,4008.4,4008.3,1.9075423]
[1734412357270,1.07497865,4008.4,4008.3,5.1584705]
[1734412357672,1.07497865,4008.4,4008.3,2.1584705]
[1734412359444,1.07497865,4008.4,4008.3,0.8633882]
[1734412360399,1.07497865,4008.4,4008.0,1.34506604]
[1734412360600,1.07497865,4009.2,4008.1,2.15676595]
[1734412360789,0.21155249,4009.1,4008.0,0.30091194]
[1734412361021,1.07497865,4008.1,4008.0,0.30091194]
[1734412361186,1.07497865,4008.1,4008.0,2.45784346]
[1734412361431,1.07497865,4008.1,4008.0,2.58442163]
[1734412361703,1.07497865,4008.1,4008.0,5.58413374]
[1734412361906,1.07497865,4008.1,4008.0,1.16368455]
[1734412362432,1.07497865,4008.1,4008.0,0.30091194]
[1734412363093,1.07497865,4008.1,4008.0,1.16328445]
[1734412363484,1.07497865,4008.1,4008.0,0.30091194]
[1734412363681,1.07497865,4008.1,4008.0,0.35889433]
[1734412374115,8.95,4009.0,4008.0,0.35889433]
[1734412374325,1.07497865,4008.1,4008.0,0.35889433]
[1734412383576,2.1499573,4008.1,4008.0,0.35889433]
[1734412383721,2.1499573,4008.1,4008.0,0.05798239]
[1734412383921,2.1499573,4008.1,4007.0,0.7681]
[1734412384270,1.07497865,4007.1,4007.0,1.06901194]
[1734412384427,1.07497865,4007.1,4007.0,0.30091194]
[1734412387466,1.07497865,4007.1,4006.6,0.28999654]
[1734412387772,1.07497865,4006.7,4006.6,0.59090848]
[1734412387968,1.07497865,4006.7,4006.6,0.30091194]
[1734412393754,1.07497865,4006.7,4006.6,0.35506365]
[1734412396980,1.07497865,4006.7,4006.6,0.05415171]
[1734412397184,1.07497865,4006.7,4006.1,0.8213]
[1734412397185,1.28997438,4006.7,4006.1,1.12221194]
[1734412397392,1.07497865,4006.2,4006.1,0.8213]
[1734412397693,1.07497865,4006.3,4006.1,0.8213]
[1734412398488,1.07497865,4006.3,4006.1,0.94559675]
[1734412400109,1.07497865,4006.3,4006.1,1.23557917]
[1734412400308,8.95,4007.9,4006.2,0.86091056]
[1734412400538,1.07497865,4006.5,4006.2,0.86091056]
[1734412400835,1.28997438,4008.0,4006.4,0.8213]
[1734412400836,1.07497865,4006.8,4006.4,0.8213]
[1734412405337,1.07497865,4006.6,4006.4,0.8213]
[1734412405553,8.95,4007.9,4006.7,3.0]
[1734412405715,1.07497865,4006.8,4006.4,0.8213]
[1734412406616,1.07497865,4006.8,4006.7,3.0]
[1734412406830,1.07497865,4006.8,4006.4,0.8213]
[1734412407531,1.07497865,4006.8,4006.7,3.0]
[1734412407933,1.07497865,4006.8,4006.4,0.8213]
[1734412408134,1.07497865,4006.5,4006.4,0.8213]
[1734412408459,1.07497865,4006.5,4006.1,0.94772797]
[1734412408662,1.07497865,4006.5,4006.2,0.86125061]
[1734412408869,1.07497865,4006.5,4006.2,0.0548555]
[1734412409034,1.07497865,4006.3,4006.2,0.0548555]
[1734412409232,1.07497865,4006.3,4005.8,0.8213]
[1734412409433,1.07497865,4006.3,4006.2,0.05305533]
[1734412409645,1.07497865,4006.3,4005.8,0.8213]
[1734412409819,1.07497865,4006.3,4006.2,0.05305533]
[1734412410019,1.07497865,4006.3,4005.8,0.8213]
[1734412410274,1.07497865,4006.3,4006.2,0.05305533]
[1734412410584,1.07497865,4006.3,4005.9,0.02496029]
[1734412410737,1.07497865,4006.3,4006.2,0.05305533]
[1734412411121,1.07497865,4006.3,4005.9,0.02496029]
[1734412411635,1.07497865,4006.3,4006.0,0.05308842]
[1734412415565,1.07497865,4006.3,4005.8,1.51392783]
[1734412415767,1.07497865,4006.3,4006.1,0.05307187]
[1734412416162,1.07497865,4006.3,4005.8,1.51392783]
[1734412416476,1.07497865,4006.3,4005.9,3.86097721]
[1734412416653,1.07497865,4006.3,4006.0,0.8609083]
[1734412416858,1.07497865,4006.3,4006.0,0.91399672]
[1734412417038,1.07497865,4006.3,4006.0,0.05308842]
[1734412417241,1.07497865,4006.3,4005.8,5.08213732]
[1734412417440,1.07497865,4006.3,4006.1,0.05307187]
[1734412417660,1.07497865,4006.3,4005.8,5.08213732]
[1734412417978,1.07497865,4006.3,4006.2,0.05305533]
[1734412418192,1.07497865,4006.3,4005.9,3.62503044]
[1734412418482,1.07497865,4006.3,4006.2,0.05305533]
[1734412418867,1.07497865,4006.3,4005.9,3.62503044]
[1734412419071,1.07497865,4006.3,4006.2,0.05305533]
[1734412419275,1.07497865,4006.3,4005.9,3.62503044]
[1734412419485,1.07497865,4006.3,4006.2,0.05305533]
[1734412419781,1.07497865,4006.3,4005.8,5.08213732]
[1734412419946,1.07497865,4006.3,4006.2,0.05305533]
[1734412420783,1.07497865,4006.3,4005.8,5.08213732]
[1734412421090,1.07497865,4006.3,4005.9,5.153513]
[1734412421378,1.07497865,4006.3,4006.0,0.86155542]
[1734412421553,1.07497865,4006.1,4006.0,0.86155542]
[1734412422640,1.07497865,4006.1,4005.5,1.0441541]
[1734412422885,1.07497865,4005.6,4005.4,0.7753]
[1734412423081,1.07497865,4005.6,4005.5,0.86206585]
[1734412423537,1.07497865,4006.8,4005.4,0.90139377]
[1734412423881,1.07497865,4005.8,4005.5,3.04836121]
[1734412424050,1.07497865,4005.8,4005.6,2.8702914]
[1734412424250,1.07497865,4005.8,4005.6,0.71492411]
[1734412424436,1.07497865,4005.8,4005.7,0.04832812]
[1734412424641,1.07497865,4005.8,4005.7,0.91065341]
[1734412424847,1.07497865,4005.8,4005.7,0.04832812]
[1734412425379,1.07497865,4005.8,4005.6,2.15660213]
[1734412425681,1.07497865,4005.8,4005.7,0.91083941]
[1734412426536,1.07497865,4005.8,4005.7,0.04832812]
[1734412426943,1.07497865,4005.8,4005.4,1.8194541]
[1734412427282,1.07497865,4005.8,4005.6,3.0]
[1734412427458,1.07497865,4005.8,4005.7,0.86271125]
[1734412427653,1.07497865,4005.8,4005.7,2.20502473]
[1734412427882,1.07497865,4005.8,4005.7,0.91103937]
[1734412428588,1.07497865,4005.8,4005.7,2.20552729]
[1734412428739,1.07497865,4005.8,4005.7,5.20552729]
[1734412429273,1.07497865,4005.8,4005.7,2.20552729]
[1734412431044,1.07497865,4005.8,4005.7,2.206457]
[1734412431895,1.56081932,4007.2,4005.7,2.206457]
[1734412431896,9.99054621,4007.7,4006.1,0.55]
[1734412432048,1.07497865,4007.3,4006.6,0.8181]
[1734412432249,1.07497865,4007.3,4006.7,4.90666847]
[1734412432448,1.07497865,4007.3,4006.8,5.15812888]
[1734412432647,1.07497865,4007.3,4006.9,0.86325155]
[1734412432893,1.07497865,4007.3,4006.9,0.91161775]
[1734412433185,1.07497865,4007.3,4006.9,0.0483662]
[1734412433501,1.07497865,4007.3,4006.6,1.86151692]
[1734412433663,1.07497865,4007.3,4007.0,0.04834966]
[1734412434010,1.07497865,4007.3,4006.7,1.04341692]
[1734412434151,1.07497865,4007.3,4007.1,0.04833313]
[1734412434585,1.07497865,4007.3,4006.8,3.0]
[1734412434782,1.07497865,4007.3,4007.2,0.04831659]
[1734412435254,1.07497865,4007.3,4006.2,3.0]
[1734412435578,0.21155249,4007.2,4006.3,0.86304008]
[1734412435778,1.04054621,4007.4,4006.0,1.04341692]
[1734412436000,9.99054621,4007.2,4005.9,0.86318225]
[1734412436156,1.04054621,4007.0,4005.6,1.04341692]
[1734412436355,1.04054621,4006.9,4005.7,0.86350943]
[1734412436673,1.15513655,4006.8,4005.7,0.86350943]
[1734412436870,1.07497865,4005.8,4005.6,1.04341692]
[1734412437083,1.07497865,4005.8,4005.7,2.15873425]
[1734412437394,1.07497865,4005.8,4005.7,1.29524055]
[1734412437601,1.07497865,4005.8,4005.7,3.8634937]
[1734412437803,1.07497865,4005.8,4005.7,5.15873425]
[1734412438988,1.07497865,4005.8,4005.7,5.20685576]
[1734412439305,1.07497865,4005.8,4005.7,2.20685576]
[1734412440580,1.07497865,4005.8,4005.7,2.20668412]
[1734412441177,1.07497865,4005.8,4005.7,2.50168674]
[1734412441413,1.07497865,4005.8,4005.7,5.50168674]
[1734412443276,1.07497865,4005.8,4005.7,2.20668412]
[1734412443612,1.07497865,4005.8,4005.7,0.91154655]
[1734412443915,1.07497865,4005.8,4005.7,0.04812151]
[1734412444287,1.07497865,4005.8,4005.4,1.04341692]
[1734412444484,1.07497865,4005.8,4005.5,0.04832998]
[1734412444783,1.07497865,4005.8,4005.4,2.15766325]
[1734412444784,1.07497865,4005.8,4005.3,4.04341692]
[1734412444998,1.07497865,4005.8,4005.6,0.04835328]
[1734412445203,1.07497865,4005.8,4005.3,1.04341692]
[1734412445517,1.07497865,4005.8,4005.3,2.1576552]
[1734412445718,1.07497865,4005.8,4005.4,2.20654954]
[1734412445901,1.07497865,4005.8,4005.5,0.86306208]
[1734412446212,1.07497865,4005.8,4005.6,0.0488745]
[1734412446725,1.07497865,4005.8,4005.2,1.04341692]
[1734412446905,1.07497865,4005.5,4005.2,5.15729561]
[1734412447104,1.07497865,4005.5,4005.3,5.15729561]
[1734412447400,1.07497865,4005.5,4005.4,0.86291824]
[1734412447916,1.07497865,4005.5,4005.2,0.86291824]
[1734412448214,1.07497865,4005.5,4005.3,2.15725772]
[1734412448412,1.07497865,4005.5,4005.4,0.86291824]
[1734412448718,1.07497865,4005.5,4005.2,0.86287618]
[1734412448885,1.07497865,4005.5,4005.3,2.1571727]
[1734412449091,1.07497865,4005.5,4005.4,0.86287618]
[1734412449417,1.07497865,4005.5,4005.2,2.15719587]
[1734412449716,1.07497865,4005.8,4005.3,2.45221712]
[1734412449876,1.07497865,4005.8,4005.4,0.86287618]
[1734412451186,1.07497865,4005.5,4005.3,0.29500262]
[1734412451417,1.07497865,4005.5,4005.1,1.04341692]
[1734412451601,1.07497865,4005.2,4005.1,2.15741186]
[1734412452720,1.07497865,4005.2,4004.7,4.04341692]
[1734412452902,1.07497865,4005.2,4004.8,2.15780937]
[1734412453107,1.07497865,4005.2,4004.8,5.15780937]
[1734412453309,1.07497865,4005.2,4004.9,0.86312375]
[1734412453510,1.07497865,4005.2,4004.6,1.04341692]
[1734412453687,1.07497865,4005.2,4004.7,3.0]
[1734412454019,1.07497865,4004.9,4004.8,0.86298919]
[1734412454322,1.07497865,4004.9,4004.8,0.91232491]
[1734412455313,1.07497865,4005.2,4004.8,0.91232491]
[1734412455526,1.07497865,4005.2,4004.8,0.04933572]
[1734412455829,1.07497865,4005.2,4004.5,1.04341692]
[1734412456003,1.07497865,4005.2,4004.9,0.04937896]
[1734412456203,1.07497865,4005.2,4004.6,0.29500262]
[1734412456528,1.07497865,4005.2,4004.7,2.20635293]
[1734412456726,1.07497865,4005.2,4004.8,0.86277634]
[1734412457035,1.07497865,4005.2,4004.9,0.04937896]
[1734412457444,1.07497865,4005.2,4004.6,0.29500262]
[1734412457621,1.07497865,4005.2,4005.0,0.04936241]
[1734412457953,1.07497865,4005.2,4004.6,0.29500262]
[1734412458245,8.95,4006.0,4004.7,2.1564235]
[1734412458462,1.07497865,4005.3,4004.8,0.8625694]
[1734412458601,1.07497865,4005.3,4004.8,0.04979408]
[1734412458802,1.07497865,4005.3,4004.6,0.58498504]
[1734412458997,1.07497865,4005.3,4004.7,2.20609059]
[1734412459247,1.07497865,4005.3,4004.7,0.04981064]
[1734412460613,1.07497865,4005.0,4004.7,0.04981064]
[1734412461034,1.07497865,4005.0,4004.8,3.0]
[1734412461419,1.07497865,4005.0,4004.8,0.04979408]
[1734412461620,1.07497865,4005.0,4004.6,0.29500262]
[1734412461834,1.07497865,4005.0,4004.7,0.04981064]
[1734412462655,1.07497865,4005.0,4004.1,0.29500262]
[1734412462808,1.07497865,4004.3,4004.1,0.29500262]
[1734412468937,1.07497865,4004.3,4004.2,0.0500459]
[1734412476654,1.07497865,4004.3,4004.0,0.7914]
[1734412476902,1.07497865,4004.1,4003.7,1.11180262]
[1734412477048,1.07497865,4004.1,4003.7,1.668941]
[1734412477248,1.07497865,4004.1,4003.8,0.29500262]
[1734412479481,1.07497865,4004.1,4003.9,0.8620343]
[1734412479881,1.07497865,4004.1,4004.0,0.12606351]
[1734412480081,1.07497865,4004.1,4003.8,0.29500262]
[1734412480432,1.07497865,4004.1,4003.9,2.15562771]
[1734412480571,1.07497865,4004.1,4003.8,3.89523665]
[1734412480767,1.07497865,4004.1,4003.9,0.86238599]
[1734412482276,1.07497865,4004.1,4003.8,3.89523665]
[1734412482479,1.07497865,4004.1,4003.9,5.15644859]
[1734412482747,1.07497865,4004.1,4003.8,3.89523665]
[1734412483011,1.07497865,4004.1,4003.9,0.86258658]
[1734412483701,1.07497865,4004.1,4004.0,0.05098286]
[1734412483900,1.07497865,4004.1,4003.4,4.04341692]
[1734412483901,1.28997438,4004.1,4003.2,1.04341692]
[1734412484074,1.28997438,4004.1,4003.3,2.15685497]
[1734412484075,1.07497865,4003.5,4003.3,2.15685497]
[1734412484275,1.07497865,4003.5,4003.4,0.86274199]
[1734412485012,1.07497865,4003.5,4003.2,3.0]
[1734412485172,1.07497865,4003.5,4003.3,5.15680847]
[1734412485524,1.07497865,4003.5,4003.1,1.986031]
[1734412485740,1.07497865,4003.5,4003.2,5.15669792]
[1734412485933,1.07497865,4003.5,4003.3,0.862712]
[1734412486227,1.07497865,4003.5,4003.1,4.63990178]
[1734412486431,1.07497865,4003.5,4003.2,5.15672126]
[1734412486709,1.07497865,4003.5,4003.1,4.63990178]
[1734412486896,1.07497865,4003.5,4003.2,3.86256898]
[1734412487082,1.07497865,4003.5,4003.1,0.8168]
[1734412487286,1.07497865,4003.2,4003.0,0.29500262]
[1734412487483,1.07497865,4003.2,4003.1,0.86254638]
[1734412487783,1.07497865,4003.2,4003.0,0.29500262]
[1734412487996,1.07497865,4003.2,4002.7,1.33339934]
[1734412488197,1.07497865,4002.9,4002.7,0.28998242]
[1734412488675,1.28997438,4002.9,4001.9,1.84991692]
[1734412488882,1.28997438,4002.9,4001.5,2.08683385]
[1734412488883,1.07497865,4002.0,4001.6,2.1262028]
[1734412489214,1.07497865,4002.1,4001.7,2.15660432]
[1734412489541,1.07497865,4002.1,4001.8,0.27628588]
[1734412492159,1.07497865,4002.3,4001.8,0.27628588]
[1734412492905,1.07497865,4002.0,4001.8,0.27628588]
[1734412493923,1.07497865,4002.0,4001.6,0.8065]
[1734412495327,1.07497865,4002.0,4001.6,0.94136031]
[1734412496227,1.07497865,4002.0,4001.6,0.8065]
[1734412497458,1.07497865,4002.0,4001.5,0.1220766]
[1734412497619,1.07497865,4001.6,4001.4,0.8065]
[1734412497838,1.07497865,4001.6,4001.1,0.8065]
[1734412498201,1.07497865,4001.6,4001.1,1.29636031]
[1734412498701,1.07497865,4001.6,4001.2,0.05347669]
[1734412498843,1.07497865,4001.4,4001.2,0.05347669]
[1734412499237,1.07497865,4001.6,4001.2,0.05347669]
[1734412501148,1.07497865,4001.3,4001.2,0.05347669]
[1734412501474,1.07497865,4001.5,4001.2,0.05347669]
[1734412501977,1.07497865,4001.5,4000.8,0.8331]
[1734412502194,1.07497865,4001.7,4001.4,0.8331]
[1734412502498,1.07497865,4001.7,4001.5,0.05365151]
[1734412502888,1.07497865,4001.7,4001.1,0.8331]
[1734412503200,1.07497865,4001.4,4000.9,0.12789663]
[1734412503940,1.07497865,4001.2,4000.8,0.8331]
[1734412504452,1.07497865,4001.4,4000.8,0.8331]
[1734412504987,1.07497865,4001.6,4001.4,3.0]
[1734412505278,1.07497865,4001.6,4000.9,0.02499207]
[1734412506262,1.07497865,4001.8,4001.4,3.0]